Cogmind - Beta 17 @@@ ROGUE MODE // 2026.06.29 @ 20:32:06 Player: 3.14 Result: Self-destructed Performance ------------- Evolutions (0) 0 Regions Visited (3) 600 Robots Destroyed (7) 35 Value Destroyed (150) 150 Prototype IDs (24) 480 Alien Tech Used (0) 0 Bonus (5300) 5300 TOTAL SCORE: 6565 Bonus ------- Prayed to X0-1V1 5000 Registered with UFD 300 Cogmind --------- Core Integrity 71/175 Matter 250/300 Energy 239/250 System Corruption 0% Temperature Cool (0) Movement Treading (160) Location -7/Scraptown Parts ------- > --- POWER (1) -------- Ion Engine > --- PROPULSION (2) --- Light Treads Light Treads > --- UTILITY (2) ------ Large Storage Unit High-powered Tractor Beam > --- WEAPON (2) ------- Subdweller Machine Gun Gauss Rifle > --- INVENTORY (15) --- Subdweller Power Source Improved Treads Spiked Treads Advanced Trap Scanner IFF Parser Improved Shield Generator EM Pulse Cannon Heavy Ion Cannon Flak Gun Light Cannon Subdweller Shrapnel Launcher Heavy Rocket Launcher CPS Tube (2) Makeshift Spear Peak State ------------ > --- POWER ------------ Subdweller Power Source > --- PROPULSION ------- Light Treads Light Treads > --- UTILITY ---------- Large Storage Unit X0-1V1's Piety Tracker > --- WEAPON ----------- Subdweller Beam Cannon Heavy Flak Cannon > --- INVENTORY -------- Ion Engine Improved Treads Subdweller Optics IFF Parser Improved Shield Generator Component Analysis Suite High-powered Tractor Beam Assault Rifle Subdweller Machine Gun Gauss Rifle Light Cannon Shock Bomb Launcher Subdweller Shrapnel Launcher CPS Tube Makeshift Spear [Rating: 29] Favorites ----------- Power Ion Engine Engine Ion Engine Propulsion Light Treads Treads Light Treads Utility Large Storage Unit Device X0-1V1's Piety Tracker Storage Large Storage Unit Processor A0-MCA's Component Scanner Weapon Subdweller Beam Cannon Energy Gun Small Laser Energy Cannon Subdweller Beam Cannon Ballistic Gun Subdweller Machine Gun Ballistic Cannon Heavy Flak Cannon Special Weapon Junk Cannon Build | -11 -10 -10 -7 ------- Run | Yrd Mat Sub Scr Slots Evolved . | . . . . Power . | . . . . Propulsion . | . . . . Utility . | . . . . Weapon . | . . . . Parts Attached 21 | 6 2 4 9 Power 3 | 1 . 1 1 Engine 3 | 1 . 1 1 Core . | . . . . Reactor . | . . . . Propulsion 2 | 2 . . . Treads 2 | 2 . . . Leg . | . . . . Wheel . | . . . . Hover . | . . . . Flight . | . . . . Utility 7 | 1 1 1 4 Device 2 | . . 1 1 Storage 4 | 1 1 . 2 Processor 1 | . . . 1 Hackware . | . . . . Protection . | . . . . Artifact . | . . . . Weapon 9 | 2 1 2 4 Energy Gun 1 | 1 . . . Energy Cannon 2 | . . 2 . Ballistic Gun 3 | 1 . . 2 Ballistic Cannon 2 | . 1 . 1 Launcher . | . . . . Special Weapon 1 | . . . 1 Impact Weapon . | . . . . Slashing Weapon . | . . . . Piercing Weapon . | . . . . Special Melee Weapon . | . . . . Unidentified Prototypes 2 | . . 1 1 Parts Lost 1 | . . 1 . Power 1 | . . 1 . Propulsion . | . . . . Utility . | . . . . Weapon . | . . . . Highest Loss Streak 1 | . . 1 . To Critical Strikes . | . . . . Average Backups 14 | 2 5 6 16 Power . | . 1 1 1 Propulsion 1 | 1 2 2 1 Utility 3 | . . . 4 Weapon 6 | . 2 3 8 Tool/Special . | . . . . Unused Backups 22 | . . . 22 Power . | . . . . Propulsion 5 | . . . 5 Utility 5 | . . . 5 Weapon 11 | . . . 11 Tool/Special 1 | . . . 1 Average Slot Usage (%) 92 | . 88 99 92 Engine 13 | . 14 13 14 Treads 28 | . 28 28 28 Device 5 | . . 10 6 Storage 14 | . 17 17 14 Energy Gun 1 | . 11 . . Energy Cannon 11 | . . 9 13 Ballistic Gun 13 | . 14 11 13 Ballistic Cannon 2 | . 2 6 1 Peak Build Rating 29 | 6 7 22 29 Average Rating 18 | 4 6 17 20 On Entrance 8 | . 6 7 22 Avg Prop Armor Cover (%) . | . . . . Naked Turns . | . . . . Heaviest Build 217 | 10 32 37 217 Greatest Support 40 | 40 40 40 40 Greatest Overweight (x) 5 | . . . 5 Average Overweight (x) . | . . . 1 Largest Inventory Capacity 35 | 8 15 15 35 Average Capacity 21 | 7 9 15 24 Most Carried 24 | 4 6 12 24 Average Carried 14 | 2 5 6 17 Final Capacity 15 | 8 15 15 15 Final Carried 14 | 4 6 12 14 Class Distribution -------------------- 62% | Mutant 37% | Hauler-Mutant Dominant Class ---------------- Mutant | -10/Materials Mutant | -10/Subcaves Mutant | -7/Scraptown Resources | -11 -10 -10 -7 ----------- Run | Yrd Mat Sub Scr Matter Collected 422 | 245 67 60 50 Remotely . | . . . . Salvage Created 236 | 65 88 83 . Parts 18 | 2 7 9 . Haulers Intercepted . | . . . . Recyclers Shooed . | . . . . Parts Field Recycled . | . . . . Retrieved Matter . | . . . . Parts Self-Destructed 8 | . . 8 . Prevented . | . . . . Parts Restored . | . . . . Kills | -11 -10 -10 -7 ------- Run | Yrd Mat Sub Scr Combat Hostiles Destroyed 6 | . 4 2 . Guns 4 | . 4 . . Cannons 2 | . . 2 . Classes Destroyed 4 | 1 2 1 . Recycler 1 | 1 . . . Swarmer 3 | . 3 . . Grunt 1 | . 1 . . Subdweller 2 | . . 2 . Best Kill Streak 3 | 1 3 2 . Combat Bots Only 3 | . 3 2 . Max Kills in Single Turn 2 | 1 2 1 . Gunslinging 1 | . 1 . . Exploded . | . . . . Melee . | . . . . Uniques/NPCs Destroyed . | . . . . Combat | -11 -10 -10 -7 -------- Run | Yrd Mat Sub Scr Hostile Shots Fired 35 | . 15 20 . Missed 8 | . 2 6 . Hits 27 | . 13 14 . Projectile 27 | . 13 14 . AOE 1 | . . 1 . Damage Taken 507 | . 120 387 . Core 137 | . 33 104 . Absorbed by Shields . | . . . . Core Remaining (%) 100 | 100 . . . Volleys Fired 31 | 5 12 14 . Largest 2 | 2 2 2 . Hottest 140 | 60 60 140 . Shots Fired 58 | 10 24 24 . Gun 42 | 10 24 8 . Cannon 16 | . . 16 . Launcher . | . . . . Special . | . . . . Kinetic 25 | 5 12 8 . Thermal 33 | 5 12 16 . Explosive . | . . . . Electromagnetic . | . . . . Robot Hit Streak 11 | 2 8 11 . Robot Miss Streak 3 | 3 3 1 . Penetration Max . | . . . . Secondary Targets 1 | . 1 . . Max Gunslinging Chain 1 | . 1 . . Shots Hit Robots 38 | 4 15 19 . Core Hits 13 | 2 7 4 . Critical Kills . | . . . . Critical Parts Destroyed 1 | . 1 . . Critical Strikes 2 | . 1 1 . Destroy 2 | . 1 1 . Melee Attacks . | . . . . Impact . | . . . . Slashing . | . . . . Piercing . | . . . . Sneak Attacks . | . . . . Combat Hostiles . | . . . . Follow-up Attacks . | . . . . Damage Inflicted 465 | 37 145 283 . Guns 250 | 37 145 68 . Cannons 215 | . . 215 . Explosions . | . . . . Melee . | . . . . Ramming . | . . . . Kinetic 149 | 25 56 68 . Thermal 316 | 12 89 215 . Explosive . | . . . . Electromagnetic . | . . . . Impact . | . . . . Slashing . | . . . . Piercing . | . . . . Highest Corruption 1 | . 1 1 . Average Corruption 1 | . 1 1 . Corruption Purged . | . . . . Corruption Blocked . | . . . . Effects 10 | . 3 7 . Message Errors 4 | . 1 3 . Matter Fused 3 | . 1 2 . Data Loss (minor) 2 | . 1 1 . Alerts 1 | . . 1 . Overload Shots . | . . . . Overflow Damage . | . . . . Projectiles . | . . . . Explosions . | . . . . Melee . | . . . . Knockbacks . | . . . . Impact . | . . . . Kinetic . | . . . . Secondary . | . . . . Self-Inflicted Damage . | . . . . Shots . | . . . . Rammed 1 | . 1 . . Targets Rammed 1 | . 1 . . Kicked . | . . . . Crushed . | . . . . Highest Temperature 44 | 40 44 . . Average Temperature 18 | 17 18 . . Received Heat Transfer 114 | . 42 72 . Siege Activations . | . . . . Martial Activations . | . . . . Shielding Activations . | . . . . Robots Disrupted . | . . . . Combat Hostiles . | . . . . Robots Corrupted . | . . . . Combat Hostiles . | . . . . Parts Fried . | . . . . Impact Corruptions . | . . . . Robots Melted . | . . . . Combat Hostiles . | . . . . Parts Melted 1 | . . 1 . Heat Transferred 632 | 25 200 407 . Parts Sabotaged . | . . . . Parts Stolen . | . . . . Parts Stripped . | . . . . Power Chain Reactions . | . . . . Alert | -11 -10 -10 -7 ------- Run | Yrd Mat Sub Scr Maximum Alert Level . | . . . . Low Security (%) 100 | 100 100 . . Level 1 . | . . . . Level 2 . | . . . . Level 3 . | . . . . Level 4 . | . . . . Level 5 . | . . . . High Security . | . . . . Max Security . | . . . . Peak Influence 70 | 5 70 . . Initial . | . . . . Average 13 | . 17 . . Influence Increases 166 | 5 161 . . Destroy 0b10 Robot/C 80 | . 80 . . Destroy 0b10 Robot/NC 5 | 5 . . . Destroy Leader 20 | . 20 . . Successful Hack 16 | . 16 . . Lose Combat Pursuer 45 | . 45 . . Influence Decreases 166 | 5 161 . . Time Decay 166 | 5 161 . . Squads Dispatched 1 | . 1 . . Investigation . | . . . . Extermination . | . . . . Reinforcement 1 | . 1 . . Assault . | . . . . Garrison . | . . . . Intercept . | . . . . Searches Triggered . | . . . . Construction Impeded . | . . . . Haulers Reinforced . | . . . . Active Scanning Responses . | . . . . Cargo Convoy Interrupts . | . . . . Stealth | -11 -10 -10 -7 --------- Run | Yrd Mat Sub Scr Distress Signals 3 | . 3 . . Communications Jammed . | . . . . Distress Signals . | . . . . Times Spotted 18 | . 14 4 . Peak Tracking Total 6 | . 6 2 . Tactical Retreats 3 | . 3 . . Traps | -11 -10 -10 -7 ------- Run | Yrd Mat Sub Scr Traps Triggered 2 | . 2 . . Indirectly . | . . . . Trap Hack Attempts . | . . . . Triggered . | . . . . Disarmed . | . . . . Reprogrammed . | . . . . Reused . | . . . . Traps Extracted . | . . . . Installed . | . . . . Triggered . | . . . . Machines | -11 -10 -10 -7 ---------- Run | Yrd Mat Sub Scr Machines Disabled . | . . . . Max in Single Turn . | . . . . Machines Repaired . | . . . . Machines Dismantled . | . . . . Machines Sabotaged . | . . . . Overloaded Fab Kills . | . . . . Hacking | -11 -10 -10 -7 --------- Run | Yrd Mat Sub Scr Machines Accessed 5 | . 3 . 2 Terminals 3 | . 3 . . Fabricators . | . . . . Repair Stations . | . . . . Recycling Units . | . . . . Scanalyzers . | . . . . Garrison Access . | . . . . Total Hacks 26 | . 15 . 11 Successful 19 | . 8 . 11 Failed 7 | . 7 . . Catastrophic . | . . . . Database Lockouts . | . . . . Manual 14 | . 14 . . Terminals 15 | . 15 . . Fabricators . | . . . . Repair Stations . | . . . . Recycling Units . | . . . . Scanalyzers . | . . . . Garrison Access . | . . . . Terminal Hacks 15 | . 4 . 11 Record 10 | . . . 10 Part Schematic 1 | . 1 . . Robot Analysis 1 | . 1 . . Prototype ID Bank 2 | . 2 . . Proto ID Catalog 1 | . . . 1 Fabricator Hacks . | . . . . Repair Station Hacks . | . . . . Recycling Unit Hacks . | . . . . Scanalyzer . | . . . . Garrison Access Hacks . | . . . . Unauthorized Hacks 4 | . 4 . . Terminals 4 | . 4 . . Botnet 1 | . 1 . . Skim 3 | . 3 . . Fabricators . | . . . . Repair Stations . | . . . . Recycling Units . | . . . . Scanalyzers . | . . . . Garrison Access . | . . . . Data Cores Recovered . | . . . . Used . | . . . . Hacking Detections 3 | . 3 . . Full Trace Events . | . . . . Feedback Events . | . . . . Feedback Blocked . | . . . . Robot Schematics Acquired . | . . . . Robots Built . | . . . . Authchips . | . . . . Time . | . . . . Total Robot Build Rating . | . . . . Part Schematics Acquired 1 | . 1 . . Parts Built . | . . . . Authchips . | . . . . Time . | . . . . Total Part Build Rating . | . . . . Part Studies Acquired . | . . . . Parts Repaired . | . . . . Time . | . . . . Parts Recycled . | . . . . Recycled Matter . | . . . . Retrieved Matter . | . . . . Retrieved Components . | . . . . Parts Scanalyzed . | . . . . Part Schematics Acquired . | . . . . Parts Damaged . | . . . . Bothacking | -11 -10 -10 -7 ------------ Run | Yrd Mat Sub Scr Used RIF Installer . | . . . . Robots Hacked . | . . . . Non-combat . | . . . . Combat . | . . . . Robot Hacks Applied . | . . . . Relay Couplers Released . | . . . . Fabnet Peak Effective % . | . . . . Robots Rewired . | . . . . Allies Hacked . | . . . . Hacks Repelled . | . . . . Allies | -11 -10 -10 -7 -------- Run | Yrd Mat Sub Scr Total Allies . | . . . . Largest Group . | . . . . Highest-Rated Group . | . . . . Highest-Rated Ally . | . . . . Total Orders . | . . . . Ally Attacks . | . . . . Total Damage . | . . . . Kills . | . . . . Allies Corrupted . | . . . . Allies Melted . | . . . . X0-1V1 Amusement Gains 12 | . 12 . . Good Acts 1 | . . 1 . Intel | -11 -10 -10 -7 ------- Run | Yrd Mat Sub Scr Active Infowar (turns) . | . . . . Robot Analysis Total 1 | . 1 . . Derelict Logs Recovered 6 | . . 2 4 Drone Launches . | . . . . Drone Recoveries . | . . . . Exploration | -11 -10 -10 -7 ------------- Run | Yrd Mat Sub Scr Turns Passed 4273 | 120 447 393 3313 Spaces Moved 1789 | 62 249 216 1262 Core 5 | 5 . . . Treads 1784 | 57 249 216 1262 Legs . | . . . . Wheels . | . . . . Hover . | . . . . Flight . | . . . . Fastest Speed 50 | 50 160 160 160 Average Speed 228 | 151 160 160 257 Slowest Speed 560 | 160 160 160 560 Overloaded Moves . | . . . . Propulsion Burnouts . | . . . . Robots Hopped . | . . . . Potential Cave-ins . | . . . . Cave-ins Triggered . | . . . . Exploration Rate (%) 37 | 5 46 14 85 Regions Visited 3 Branch Regions 2 Pre-discovered Areas . | . . . . Known Exits Taken . | . . . . Unknown Exits Taken 3 | 1 1 1 . Scrap Searched 9 | . . . 9 Spaces Dug . | . . . . Terrain Destroyed . | . . . . Melee . | . . . . Projectile . | . . . . AOE . | . . . . Terrain Rammed . | . . . . Walls Destroyed . | . . . . Machines Disabled . | . . . . Actions | -11 -10 -10 -7 --------- Run | Yrd Mat Sub Scr Total 1927 | 76 275 240 1336 Wait 13 | . 8 . 5 Move 1786 | 61 248 215 1262 Hop . | . . . . Pick Up 52 | 4 2 5 41 Fast Attach 17 | 6 3 3 5 Attach 3 | . . . 3 Detach 2 | . . 1 1 Swap 3 | . . 1 2 Drop 19 | . 1 1 17 Fire 31 | 5 12 14 . Melee . | . . . . Ram . | . . . . Kick . | . . . . Crush 1 | . 1 . . Escape Stasis . | . . . . Rewire . | . . . . Trap . | . . . . Miscellaneous . | . . . . Route ------- -11/Scrapyard -10/Materials (discovered 5 exits: [*Mat x2] / [*Min x2] / [*Sub]) -10/Subcaves (discovered 2 exits: [*Mat] / *Scr) -7/Scraptown (discovered 1 exit: [*Fac]) History --------- Turn | Location | Event 10 | -11/Scrapyard | Discovered new exit (range 14) 121 | -11/Scrapyard | Entered Materials 203 | -10/Materials | Discovered new exit (range 5) 206 | -10/Materials | Discovered new exit (range 14) 284 | -10/Materials | Discovered new exit (range 10) 312 | -10/Materials | Build established: Mutant 429 | -10/Materials | Discovered new exit (range 16) 559 | -10/Materials | Discovered new exit (range 7) 568 | -10/Materials | Prayed at D.C.S.S. Altar Unit 568 | -10/Materials | Entered Subcaves 569 | -10/Subcaves | Approached by a straggling Scientist 584 | -10/Subcaves | Learned 4 Materials zone layouts 616 | -10/Subcaves | Shifting Twisted Machinery released Flamer 625 | -10/Subcaves | Shifting Twisted Machinery released Mak. System Restoration Module 746 | -10/Subcaves | Heat dissipation permanently improved by X0-1V1 (+15; -75 max core) 824 | -10/Subcaves | Discovered new exit (range 9) 857 | -10/Subcaves | Scientist uncovered a shortcut to Scraptown 903 | -10/Subcaves | Core integrity fell below 50% 961 | -10/Subcaves | Entered Scraptown 961 | -7/Scraptown | System corruption cleaned by C-Scrubber 1085 | -7/Scraptown | Scanned Subdweller tech in exchange for log data 1088 | -7/Scraptown | Learned location of 1 exit from Proximity Caves 1091 | -7/Scraptown | Learned location of 1 exit from Factory 1093 | -7/Scraptown | Learned location of 1 exit from Research 1110 | -7/Scraptown | Discovered new exit (range 11) 1678 | -7/Scraptown | Visited Shadow of the Wyrm 1724 | -7/Scraptown | Visited The Evicted 1740 | -7/Scraptown | Visited Comm Corps 1806 | -7/Scraptown | Visited Cyclists 1873 | -7/Scraptown | Visited CPS Storage 1927 | -7/Scraptown | Visited Bundlers 2128 | -7/Scraptown | Visited UFD Registry 2142 | -7/Scraptown | Registered with UFD as "Zerotube" 2190 | -7/Scraptown | Visited Junk Repository 2279 | -7/Scraptown | Visited Science Guys 2356 | -7/Scraptown | Visited A0-MCA Data Center 2380 | -7/Scraptown | Given an A- rating by A0-MCA 2385 | -7/Scraptown | Found A0-MCA's Component Scanner 2939 | -7/Scraptown | Build established: Hauler-Mutant 2980 | -7/Scraptown | Visited Junk Cannon Lab 3019 | -7/Scraptown | Found Prototype Special Weapon 3021 | -7/Scraptown | Identified Junk Cannon 3260 | -7/Scraptown | Visited Infowarlord's Domain 3368 | -7/Scraptown | Visited Scrap Suit Storage 3418 | -7/Scraptown | Visited LU-1G1's Boring Crew 3508 | -7/Scraptown | Visited Scrapoid Research Area 3603 | -7/Scraptown | Visited Junk Repository 3841 | -7/Scraptown | Visited Curators Association 4274 | -7/Scraptown | Self-destructed Last Messages --------------- of the many wondrous pieces in our collection!" 03954_ 1G-DV8(p) closely examines the mainframe. 03989_ NM-I38(c): "Come one, come all! See for yourself a fine selection of the many wondrous pieces in our collection!" 03991_ 1G-DV8(p) is fixated on the mainframe. 04222_ Dropped Junk Cannon. 04223_ Dropped Humpback. 04226_ Acquired Lrg. Storage Unit. 04229_ Acquired Mak. Spear. 04232_ Acquired Flak Gun. 04234_ Acquired Hvy. Rocket Launcher. 04237_ Acquired Sub. Shrapnel Launcher. 04243_ Acquired Imp. Treads. 04245_ Acquired CPS Tube. 04251_ Acquired EM Pulse Cannon. 04257_ Acquired Imp. Shield Generator. 04260_ Acquired IFF Parser. 04264_ Acquired Adv. Trap Scanner. 04265_ Dropped Mni. Grenade Launcher. 04272_ Acquired Hpw. Tractor Beam. Map ----- +----------------------------------------------------+ | ?????????????? """# #? ?????????????????????? | | ?????????????? """# ## #????????????????????? | | ????????????# " """# ## #????????????????????? | | ###########?#""" " # ## ????????????????????? | | #= # = #!!#?#""" # ## #?#####??????????????? | | # /#! #! #?#""" ""# ## #? #??????????????? | | # # # #?# " "# ## # #??????????????? | | # #?? "# ## # # #????????????? | | # #???? ??# ## #????????????? | | ##### #####?????# #???# ## #########????????????? | | ##### ########### ##### ## ##???????????????????? | | """"" """"""""""" """"" "" "#???######??????????? | | "#??#"""""#""#???????? | | ! "#?? !!!! !#???????? | | "#? #???????? | | "## #???????? | | X" #???????? | | """"""""""""""""""""""" "## #??????????? | | """"""""""""""""""""""" "#? !! !!#??????????? | | ### ################"" "#??#"""""#??????????? | | ? ?????????????#"" "#???######??????????? | | ????????????#"" "#???????????????????? | | "" "" ????????????#""]] "###########?????????? | | "" ""??????????###"" "## #?????????? | | ?? ????#########E#""!| "## #?????????? | | ?? "" ? g! @/ c #?????????? | | ?? ?? ? !] "## #?????????? | | ??? ?????#########E#"" "## #?????????? | | ?? ????????????###"" "###########?????????? | | ?"" ""?????????????#"" "#############???????? | | ? ?????????????#"" "## """"""""#??????? | | ?? ??????????????#"" "## " """"""#??????? | | ### ################"" g "## " ""#??????? | | """"""""""""""""""""""" "## ""#??????? | | """"""""""""""""""""""" g ""#??????? | | "## """"""""#??????? | | "## #########??????? | | "## #??????????????? | | ## #??????????????? | | j # "??????????????? | | """"""" """"""""""" """""" ## #??????????????? | | ####### ########### ###### ######??????????????? | | ## "# "#?# #???????????????????? | | ##" #""" !"""#?# #???????????????????? | | ##&" "" ""#""" """"#?# #???????????????????? | | ##&" "" ""#"!" """#?# #???????????????????? | | ##& ""#""" """#?# #???????????????????? | | ##"" """"#""" """#?# ############????????? | | ?#"""" """#"""""""""#?# #????????? | | ?#""!" "#"""""""""#?# ##????????? | +----------------------------------------------------+ Best States ------------- Heat Dissipation 40 Energy Generation 10 Energy Capacity 250 Matter Stores 300 Matter Capacity 300 Sight Range 16 Terrain Scan Density 10 Evasion (%) 40 Recoil Reduction 2 Item Schematics ----------------- Huge Storage Unit | -10/Materials | Hacked Robot Schematics ------------------ None Fabricated ------------ Nothing Repaired ---------- Nothing Studied --------- None Alien Tech Used ----------------- None Achievements -------------- None Challenges ------------ None Game ------ Seed SingularityPhasingWyrmplate Manual? 0 Play Time 00:18:08 Cumulative 961.9 hours Start 2026.06.29 @ 19:33:17 End 2026.06.29 @ 20:32:06 Sessions 3 Manual Loads 0 Difficulty Rogue Special Mode None Game No. 1645 Rogue 1645 Adventurer 0 Explorer 0 Win Type - Total 95 Types 56/1/16/16/4/0/0/1/0/1 Lore% 93 Gallery% 80 Achievement% 67 Wizard Run 0 Options --------- Layout 0 ASCII 1 Keyboard 0 Movement Numpad Keybinds 1 Fullscreen 2 Font 18/SmallcapsGlow Map View 76x50 Zoom Use 0% Tactical HUD 1 Map Filters NONE Filters NONE Steam 1 RUN: d3df1946-85eb-4dcc-b988-531f2b673540